fUST/lending_fUST_20250719
["ID","MTS","AMOUNT","RATE_DAILY","PERIOD"]
[373229518,1752917449378,-632.9,0.0001795,2]
[373229519,1752917449388,-460.0,0.0001795,2]
[373229520,1752917449399,-460.0,0.0001795,2]
[373229521,1752917449409,-460.0,0.0001795,2]
[373229522,1752917449418,-460.0,0.00017951,2]
[373229523,1752917449428,-460.0,0.00017951,2]
[373229524,1752917449438,-460.0,0.00017951,2]
[373229525,1752917449448,-460.0,0.00017951,2]
[373229526,1752917449458,-650.33,0.00017951,2]
[373229527,1752917449467,-463.7,0.00017951,2]
[373229528,1752917449477,-697.46,0.00017951,2]
[373229529,1752917449487,-624.21,0.00017951,2]
[373229530,1752917449497,-460.0,0.00017951,2]
[373229531,1752917449506,-460.0,0.00017951,2]
[373229532,1752917449516,-466.47860225,0.00017951,2]
[373229533,1752917449526,-460.0,0.00017951,2]
[373229534,1752917449536,-547.57,0.00017951,2]
[373229535,1752917449547,-460.0,0.00017951,2]
[373229536,1752917449556,-460.0,0.00017951,2]
[373229537,1752917449566,-460.0,0.00017951,2]
[373229538,1752917449576,-460.0,0.00017952,2]
[373229539,1752917449586,-460.0,0.00017952,2]
[373229540,1752917449595,-460.0,0.00017952,2]
[373229541,1752917449605,-460.0,0.00017952,2]
[373229542,1752917449616,-460.0,0.00017952,2]
[373229543,1752917449630,-570.0,0.00017954,2]
[373229544,1752917449640,-500.0,0.00017954,2]
[373229545,1752917449650,-460.0,0.00017954,2]
[373229546,1752917449660,-1500.0,0.00017968,2]
[373229547,1752917449670,-500.0,0.00017968,2]
[373229548,1752917449680,-1500.0,0.00017968,2]
[373229549,1752917449690,-500.0,0.00017973,2]
[373229550,1752917449702,-500.0,0.00017973,2]
[373229551,1752917449713,-158.1691832,0.00017973,2]
[373229552,1752917449723,-500.0,0.00017973,2]
[373229553,1752917449733,-158.17056156,0.00017973,2]
[373229554,1752917449743,-40786.30330971,0.00018,2]
[373229555,1752917449753,-1265.07201891,0.00018,2]
[373229556,1752917449763,-182.04499252,0.00018,2]
[373229557,1752917449773,-460.0,0.00018095,2]
[373229558,1752917449784,-571.33485352,0.00018112,2]
[373229559,1752917449794,-500.0,0.00018112,2]
[373229560,1752917449804,-500.0,0.00018112,2]
[373229561,1752917449813,-152.15572667,0.00018112,2]
[373229562,1752917449823,-500.0,0.00018112,2]
[373229563,1752917449833,-151.16040528,0.00018112,2]
[373229564,1752917449843,-420.0,0.00018114,2]
[373229565,1752917449853,-330.0,0.00018115,2]
[373229566,1752917449863,-4349.45575267,0.00018176,2]
[373229567,1752917449872,-4285.26,0.00018222,2]
[373229568,1752917449882,-460.0,0.00018222,2]
[373229569,1752917449892,-460.0,0.00018222,2]
[373229570,1752917449902,-1180.02,0.00018222,2]
[373229571,1752917449912,-2879.82,0.00018222,2]
[373229572,1752917449923,-620.4,0.00018223,2]
[373229573,1752917449932,-460.0,0.00018223,2]
[373229574,1752917449943,-460.0,0.00018223,2]
[373229575,1752917449952,-1523.27,0.00018223,2]
[373229576,1752917449962,-460.0,0.00018223,2]
[373229577,1752917449972,-1486.49,0.00018223,2]
[373229578,1752917449982,-833.38,0.00018223,2]
[373229579,1752917449992,-747.55,0.00018223,2]
[373229580,1752917450002,-460.0,0.00018223,2]
[373229581,1752917450012,-460.0,0.00018223,2]
[373229582,1752917450021,-460.0,0.00018223,2]
[373229583,1752917450032,-460.0,0.00018223,2]
[373229584,1752917450043,-460.0,0.00018223,2]
[373229585,1752917450054,-460.0,0.00018223,2]
[373229586,1752917450064,-460.0,0.00018223,2]
[373229587,1752917450074,-460.0,0.00018224,2]
[373229588,1752917450083,-460.0,0.00018224,2]
[373229589,1752917450093,-460.0,0.00018224,2]
[373229590,1752917450103,-460.0,0.00018224,2]
[373229591,1752917450114,-460.0,0.00018224,2]
[373229592,1752917450124,-460.0,0.00018224,2]
[373229593,1752917450134,-460.0,0.00018224,2]
[373229594,1752917450144,-508.05,0.00018224,2]
[373229595,1752917450154,-460.0,0.00018224,2]
[373229596,1752917450164,-460.0,0.00018224,2]
[373229597,1752917450174,-460.0,0.00018224,2]
[373229598,1752917450183,-460.0,0.00018224,2]
[373229599,1752917450193,-460.0,0.00018224,2]
[373229600,1752917450203,-460.0,0.00018224,2]
[373229601,1752917450212,-1636.45,0.00018224,2]
[373229602,1752917450222,-460.0,0.00018224,2]
[373229603,1752917450232,-460.0,0.00018224,2]
[373229604,1752917450243,-480.68,0.00018224,2]
[373229605,1752917450254,-568.99,0.00018224,2]
[373229606,1752917450264,-460.0,0.00018224,2]
[373229607,1752917450274,-632.9,0.00018224,2]
[373229608,1752917450283,-460.0,0.00018224,2]
[373229609,1752917450293,-460.0,0.00018224,2]
[373229610,1752917450303,-460.0,0.00018224,2]
[373229611,1752917450313,-460.0,0.00018225,2]
[373229612,1752917450323,-460.0,0.00018225,2]
[373229613,1752917450333,-460.0,0.00018225,2]
[373229614,1752917450343,-460.0,0.00018225,2]
[373229615,1752917450353,-650.33,0.00018225,2]
[373229616,1752917450363,-697.46,0.00018225,2]
[373229617,1752917450373,-624.21,0.00018225,2]
[373229618,1752917450383,-460.0,0.00018225,2]
[373229619,1752917450394,-547.57,0.00018225,2]
[373229620,1752917450404,-460.0,0.00018225,2]
[373229621,1752917450413,-460.0,0.00018225,2]
[373229622,1752917450423,-460.0,0.00018226,2]
[373229623,1752917450433,-460.0,0.00018226,2]
[373229624,1752917450443,-460.0,0.00018226,2]
[373229625,1752917450453,-460.0,0.00018226,2]
[373229626,1752917450463,-570.0,0.00018228,2]
[373229627,1752917450473,-500.0,0.00018228,2]
[373229628,1752917450483,-544.08,0.00018228,2]
[373229629,1752917450492,-160.0,0.00018296,2]
[373229630,1752917450502,-1500.0,0.00018303,2]
[373229631,1752917450512,-460.0,0.00018369,2]
[373229632,1752917450522,-1500.0,0.00018375,2]
[373229633,1752917450532,-180.34490943,0.00018398,2]
[373229634,1752917450541,-4349.45575267,0.00018452,2]
[373229635,1752917450551,-4285.26,0.00018496,2]
[373229636,1752917450561,-460.0,0.00018496,2]
[373229637,1752917450571,-460.0,0.00018496,2]
[373229638,1752917450582,-1180.02,0.00018496,2]
[373229639,1752917450591,-2879.82,0.00018496,2]
[373229640,1752917450601,-620.4,0.00018497,2]
[373229641,1752917450611,-579.8935976,0.00018497,2]
[373229642,1752917450622,-460.0,0.00018497,2]
[373229643,1752917450634,-1523.27,0.00018497,2]
[373229644,1752917450645,-460.0,0.00018497,2]
[373229645,1752917450654,-1486.49,0.00018497,2]
[373229646,1752917450664,-833.38,0.00018497,2]
[373229647,1752917450674,-747.55,0.00018497,2]
[373229648,1752917450683,-460.0,0.00018497,2]
[373229649,1752917450694,-460.0,0.00018497,2]
[373229650,1752917450704,-460.0,0.00018497,2]
[373229651,1752917450715,-460.0,0.00018497,2]
[373229652,1752917450725,-460.0,0.00018497,2]
[373229653,1752917450735,-151.0,0.00018497,2]
[373229654,1752917450745,-151.0,0.00018497,2]
[373229655,1752917450755,-460.0,0.00018497,2]
[373229656,1752917450765,-460.0,0.00018497,2]
[373229657,1752917450775,-460.0,0.00018498,2]
[373229658,1752917450785,-460.0,0.00018498,2]
[373229659,1752917450795,-460.0,0.00018498,2]
[373229660,1752917450805,-460.0,0.00018498,2]
[373229661,1752917450815,-460.0,0.00018498,2]
[373229662,1752917450825,-460.0,0.00018498,2]
[373229663,1752917450835,-460.0,0.00018498,2]
[373229664,1752917450847,-460.0,0.00018498,2]
[373229665,1752917450864,-460.0,0.00018498,2]
[373229666,1752917450874,-460.0,0.00018498,2]
[373229667,1752917450884,-1636.45,0.00018498,2]
[373229668,1752917450894,-460.0,0.00018498,2]
[373229669,1752917450905,-480.68,0.00018498,2]
[373229670,1752917450915,-460.0,0.00018498,2]
[373229671,1752917450926,-632.9,0.00018498,2]
[373229672,1752917450936,-460.0,0.00018498,2]
[373229673,1752917450946,-460.0,0.00018498,2]
[373229674,1752917450956,-478.23633946,0.00018498,2]
[373229675,1752917450967,-460.0,0.00018499,2]
[373229676,1752917450977,-460.0,0.00018499,2]
[373229677,1752917450987,-460.0,0.00018499,2]
[373229678,1752917450996,-650.33,0.00018499,2]
[373229679,1752917451006,-697.46,0.00018499,2]
[373229680,1752917451121,-624.21,0.00018499,2]
[373229681,1752917451132,-460.0,0.00018499,2]
[373229682,1752917451143,-547.57,0.00018499,2]
[373229683,1752917451153,-460.0,0.00018499,2]
[373229684,1752917451163,-460.0,0.000185,2]
[373229685,1752917451173,-460.0,0.000185,2]
[373229686,1752917451183,-460.0,0.000185,2]
[373229687,1752917451193,-570.0,0.00018502,2]
[373229688,1752917451203,-500.0,0.00018502,2]
[373229689,1752917451213,-151.0,0.00018502,2]
[373229690,1752917451222,-151.0,0.00018502,2]
[373229691,1752917451232,-151.0,0.00018502,2]
[373229692,1752917451242,-151.0,0.00018502,2]
[373229693,1752917451251,-151.0,0.00018502,2]
[373229694,1752917451261,-151.0,0.00018502,2]
[373229695,1752917451271,-163.19262,0.00018502,2]
[373229696,1752917451280,-161.766249,0.00018502,2]
[373229697,1752917451290,-151.0,0.00018502,2]
[373229698,1752917451299,-151.0,0.00018502,2]
[373229699,1752917451309,-2000.0,0.00018516,2]
[373229700,1752917451318,-1001.62759058,0.00018521,2]
[373229701,1752917451328,-1006.91472063,0.00018521,2]
[373229702,1752917451338,-501.37630859,0.00018521,2]
[373229703,1752917451348,-165.17850168,0.00018659,2]
[373229704,1752917451357,-1000.0,0.00018659,2]
[373229705,1752917451366,-1000.0,0.00018659,2]
[373229706,1752917451376,-4349.45575267,0.00018728,2]
[373229707,1752917451386,-4285.26,0.0001877,2]
[373229708,1752917451396,-540.19495109,0.0001877,2]
[373229709,1752917451406,-460.0,0.0001877,2]
[373229710,1752917451416,-1180.02,0.0001877,2]
[373229711,1752917451426,-2879.82,0.0001877,2]
[373229712,1752917451435,-620.4,0.00018771,2]
[373229713,1752917451445,-460.0,0.00018771,2]
[373229714,1752917451455,-1523.27,0.00018771,2]
[373229715,1752917451464,-460.0,0.00018771,2]
[373229716,1752917451474,-1486.49,0.00018771,2]
[373229717,1752917451483,-833.38,0.00018771,2]
[373229718,1752917451493,-747.55,0.00018771,2]
[373229719,1752917451503,-460.0,0.00018771,2]
[373229720,1752917451512,-460.0,0.00018771,2]
[373229721,1752917451521,-460.0,0.00018771,2]
[373229722,1752917451531,-460.0,0.00018771,2]
[373229723,1752917451541,-460.0,0.00018771,2]
[373229724,1752917451550,-460.0,0.00018771,2]
[373229725,1752917451559,-574.23,0.00018771,2]
[373229726,1752917451569,-460.0,0.00018772,2]
[373229727,1752917451579,-460.0,0.00018772,2]
[373229728,1752917451588,-460.0,0.00018772,2]
[373229729,1752917451597,-460.0,0.00018772,2]
[373229730,1752917451606,-460.0,0.00018772,2]
[373229731,1752917451616,-460.0,0.00018772,2]
[373229732,1752917451629,-460.0,0.00018772,2]
[373229733,1752917451638,-460.0,0.00018772,2]
[373229734,1752917451649,-1636.45,0.00018772,2]
[373229735,1752917451659,-480.68,0.00018772,2]
[373229736,1752917451669,-460.0,0.00018772,2]
[373229737,1752917451679,-632.9,0.00018772,2]
[373229738,1752917451689,-392.74,0.00018772,2]
[373229739,1752917451699,-460.0,0.00018772,2]
[373229740,1752917451710,-281.83946034,0.00018773,2]
[373229741,1752917451719,-460.0,0.00018773,2]
[373229742,1752917451729,-460.0,0.00018773,2]
[373229743,1752917451739,-650.33,0.00018773,2]
[373229744,1752917451748,-697.46,0.00018773,2]
[373229745,1752917451758,-624.21,0.00018773,2]
[373229746,1752917451767,-460.0,0.00018773,2]
[373229747,1752917451777,-547.57,0.00018773,2]
[373229748,1752917451787,-460.0,0.00018773,2]
[373229749,1752917451797,-460.0,0.00018774,2]
[373229750,1752917451806,-570.0,0.00018776,2]
[373229751,1752917451816,-500.0,0.00018776,2]
[373229752,1752917451826,-151.0,0.000188,2]
[373229753,1752917451835,-260.0,0.00018844,2]
[373229754,1752917451845,-2000.0,0.00018851,2]
[373229755,1752917451855,-744.29704405,0.000189,2]
[373229756,1752917451864,-2000.0,0.00018923,2]
[373229757,1752917451874,-317.8463675,0.00018993,2]
[373229758,1752917451884,-4349.45575267,0.00019003,2]
[373229759,1752917451893,-4285.26,0.00019044,2]
[373229760,1752917451903,-460.0,0.00019044,2]
[373229761,1752917451912,-1180.02,0.00019044,2]
[373229762,1752917451922,-2879.82,0.00019044,2]
[373229763,1752917451932,-620.4,0.00019045,2]
[373229764,1752917451941,-460.0,0.00019045,2]
[373229765,1752917451951,-1523.27,0.00019045,2]
[373229766,1752917451960,-460.0,0.00019045,2]
[373229767,1752917451970,-1486.49,0.00019045,2]
[373229768,1752917451980,-833.38,0.00019045,2]
[373229769,1752917451990,-747.55,0.00019045,2]
[373229770,1752917451999,-460.0,0.00019045,2]
[373229771,1752917452009,-460.0,0.00019045,2]
[373229772,1752917452018,-460.0,0.00019045,2]
[373229773,1752917452029,-460.0,0.00019045,2]
[373229774,1752917452039,-445.79118827,0.00019045,2]
[373229775,1752917452048,-460.0,0.00019045,2]
[373229776,1752917452057,-460.0,0.00019046,2]
[373229777,1752917452067,-494.00398031,0.00019046,2]
[373229778,1752917452076,-460.0,0.00019046,2]
[373229779,1752917452086,-460.0,0.00019046,2]
[373229780,1752917452096,-460.0,0.00019046,2]
[373229781,1752917452106,-460.0,0.00019046,2]
[373229782,1752917452115,-460.0,0.00019046,2]
[373229783,1752917452125,-460.0,0.00019046,2]
[373229784,1752917452135,-1636.45,0.00019046,2]
[373229785,1752917452146,-480.68,0.00019046,2]
[373229786,1752917452156,-531.99750628,0.00019046,2]
[373229787,1752917452165,-632.9,0.00019046,2]
[373229788,1752917452175,-460.0,0.00019046,2]
[373229789,1752917452185,-460.0,0.00019047,2]
[373229790,1752917452196,-460.0,0.00019047,2]
[373229791,1752917452206,-650.33,0.00019047,2]
[373229792,1752917452215,-151.0,0.00019047,2]
[373229793,1752917452226,-258.3407,0.00019047,2]
[373229794,1752917452236,-258.3407,0.00019047,2]
[373229795,1752917452246,-697.46,0.00019047,2]
[373229796,1752917452255,-624.21,0.00019047,2]
[373229797,1752917452265,-151.0,0.00019047,2]
[373229798,1752917452275,-460.0,0.00019047,2]
[373229799,1752917452285,-319.64367,0.00019047,2]
[373229800,1752917452295,-319.64367,0.00019047,2]
[373229801,1752917452305,-151.0,0.00019047,2]
[373229802,1752917452315,-151.0,0.00019047,2]
[373229803,1752917452326,-547.57,0.00019047,2]
[373229804,1752917452336,-460.0,0.00019047,2]
[373229805,1752917452346,-460.0,0.00019048,2]
[373229806,1752917452356,-570.0,0.0001905,2]
[373229807,1752917452366,-500.0,0.0001905,2]
[373229808,1752917452376,-1500.0,0.00019064,2]
[373229809,1752917452385,-433.865937,0.00019178,2]
[373229810,1752917452396,-666.0,0.00019178,2]
[373229811,1752917452406,-151.0,0.00019207,2]
[373229812,1752917452416,-151.0,0.00019207,2]
[373229813,1752917452425,-151.0,0.00019207,2]
[373229814,1752917452435,-1500.0,0.00019207,2]
[373229815,1752917452444,-1006.97064334,0.00019207,2]
[373229816,1752917452454,-4349.45575267,0.00019279,2]
[373229817,1752917452464,-4285.26,0.00019318,2]
[373229818,1752917452474,-460.0,0.00019318,2]
[373229819,1752917452483,-1180.02,0.00019318,2]
[373229820,1752917452493,-2879.82,0.00019318,2]
[373229821,1752917452503,-620.4,0.00019319,2]
[373229822,1752917452513,-460.0,0.00019319,2]
[373229823,1752917452522,-1523.27,0.00019319,2]
[373229824,1752917452531,-460.0,0.00019319,2]
[373229825,1752917452541,-1486.49,0.00019319,2]
[373229826,1752917452551,-833.38,0.00019319,2]
[373229827,1752917452561,-747.55,0.00019319,2]
[373229828,1752917452570,-460.0,0.00019319,2]
[373229829,1752917452580,-460.0,0.00019319,2]
[373229830,1752917452590,-460.0,0.00019319,2]
[373229831,1752917452600,-460.0,0.00019319,2]
[373229832,1752917452610,-460.0,0.00019319,2]
[373229833,1752917452620,-460.0,0.0001932,2]
[373229834,1752917452632,-460.0,0.0001932,2]
[373229835,1752917452644,-460.0,0.0001932,2]
[373229836,1752917452653,-460.0,0.0001932,2]
[373229837,1752917452663,-460.0,0.0001932,2]
[373229838,1752917452674,-460.0,0.0001932,2]
[373229839,1752917452684,-460.0,0.0001932,2]
[373229840,1752917452693,-1636.45,0.0001932,2]
[373229841,1752917452704,-480.68,0.0001932,2]
[373229842,1752917452714,-632.9,0.0001932,2]
[373229843,1752917452724,-460.0,0.0001932,2]
[373229844,1752917452733,-460.0,0.00019321,2]
[373229845,1752917452743,-460.0,0.00019321,2]
[373229846,1752917452753,-650.33,0.00019321,2]
[373229847,1752917452762,-697.46,0.00019321,2]
[373229848,1752917452772,-624.21,0.00019321,2]
[373229849,1752917452782,-460.0,0.00019321,2]
[373229850,1752917452792,-547.57,0.00019321,2]
[373229851,1752917452801,-460.0,0.00019321,2]
[373229852,1752917452811,-460.0,0.00019322,2]
[373229853,1752917452821,-570.0,0.00019324,2]
[373229854,1752917452831,-500.0,0.00019324,2]
[373229855,1752917452841,-360.0,0.00019392,2]
[373229856,1752917452851,-256.022617,0.00019452,2]
[373229857,1752917452861,-1500.0,0.00019471,2]
[373229858,1752917452871,-71570.5520484,0.0001949,2]
[373229859,1752917453047,-3557.9,0.0001949,2]
[373229860,1752917453059,-588.7,0.0001949,2]
[373229861,1752917453102,-18267.9320422,0.0001949,2]
[373229862,1752917453112,-151.0,0.0001949,2]
[373229863,1752917453121,-151.0,0.0001949,2]
[373229864,1752917453131,-6237.41534725,0.00019517,2]
[373229865,1752917453141,-207.4,0.00019517,2]
[373229866,1752917453153,-4349.45575267,0.00019555,2]
[373229867,1752917453163,-4285.26,0.00019592,2]
[373229868,1752917453173,-460.0,0.00019592,2]
[373229869,1752917453182,-1180.02,0.00019592,2]
[373229870,1752917453191,-2879.82,0.00019592,2]
[373229871,1752917453200,-460.0,0.00019593,2]
[373229872,1752917453209,-1523.27,0.00019593,2]
[373229873,1752917453218,-257.0,0.00019593,2]
[373229874,1752917453227,-1486.49,0.00019593,2]
[373229875,1752917453236,-833.38,0.00019593,2]
[373229876,1752917453245,-747.55,0.00019593,2]
[373229877,1752917453254,-460.0,0.00019593,2]
[373229878,1752917453264,-460.0,0.00019593,2]
[373229879,1752917453274,-460.0,0.00019593,2]
[373229880,1752917453284,-460.0,0.00019593,2]
[373229881,1752917453293,-460.0,0.00019593,2]
[373229882,1752917453302,-514.54,0.00019594,2]
[373229883,1752917453312,-151.0,0.00019594,2]
[373229884,1752917453322,-151.0,0.00019594,2]
[373229885,1752917453331,-151.0,0.00019594,2]
[373229886,1752917453340,-460.0,0.00019594,2]
[373229887,1752917453349,-151.0,0.00019594,2]
[373229888,1752917453359,-151.0,0.00019594,2]
[373229889,1752917453368,-151.0,0.00019594,2]
[373229890,1752917453378,-460.0,0.00019594,2]
[373229891,1752917453388,-371.725712,0.00019594,2]
[373229892,1752917453399,-371.725712,0.00019594,2]
[373229893,1752917453408,-1764.25696,0.00019594,2]
[373229894,1752917453417,-174.450452,0.00019594,2]
[373229895,1752917453427,-1764.25696,0.00019594,2]
[373229896,1752917453436,-174.450452,0.00019594,2]
[373229897,1752917453445,-460.0,0.00019594,2]
[373229898,1752917453455,-460.0,0.00019594,2]
[373229899,1752917453465,-460.0,0.00019594,2]
[373229900,1752917453475,-220.94123425,0.00019594,2]
[373229901,1752917453484,-1636.45,0.00019594,2]
[373229902,1752917453493,-480.68,0.00019594,2]
[373229903,1752917453622,-632.9,0.00019594,2]
[373229904,1752917453635,-460.0,0.00019594,2]
[373229905,1752917453648,-460.0,0.00019595,2]
[373229906,1752917453657,-208.4063455,0.00019595,2]
[373229907,1752917453669,-650.33,0.00019595,2]
[373229908,1752917453678,-697.46,0.00019595,2]
[373229909,1752917453688,-624.21,0.00019595,2]
[373229910,1752917453698,-460.0,0.00019595,2]
[373229911,1752917453708,-547.57,0.00019595,2]
[373229912,1752917453718,-151.68,0.00019595,2]
[373229913,1752917453728,-460.0,0.00019596,2]
[373229914,1752917453737,-151.0,0.00019596,2]
[373229915,1752917453747,-151.0,0.00019596,2]
[373229916,1752917453757,-151.0,0.00019596,2]
[373229917,1752917453766,-151.0,0.00019596,2]
[373229918,1752917453775,-151.0,0.00019596,2]
[373229919,1752917453785,-151.0,0.00019596,2]
[373229920,1752917453794,-151.0,0.00019596,2]
[373229921,1752917453803,-261.518808,0.00019596,2]
[373229922,1752917453812,-261.518808,0.00019596,2]
[373229923,1752917453822,-570.0,0.00019598,2]
[373229924,1752917453832,-500.0,0.00019598,2]
[373229925,1752917453842,-587.0,0.00019793,2]
[373229926,1752917453851,-151.0,0.000198,2]
[373229927,1752917453861,-9686.43620779,0.00019823,2]
[373229928,1752917453870,-4349.45575267,0.00019831,2]
[373229929,1752917453880,-4285.26,0.00019866,2]
[373229930,1752917453889,-299.24108471,0.00019866,2]
[373229931,1752917453899,-1180.02,0.00019866,2]
[373229932,1752917453909,-2879.82,0.00019866,2]
[373229933,1752917453918,-460.0,0.00019867,2]
[373229934,1752917453927,-1523.27,0.00019867,2]
[373229935,1752917453937,-1486.49,0.00019867,2]
[373229936,1752917453946,-833.38,0.00019867,2]
[373229937,1752917453956,-151.0,0.00019867,2]
[373229938,1752917453965,-747.55,0.00019867,2]
[373229939,1752917453975,-460.0,0.00019867,2]
[373229940,1752917453984,-151.0,0.00019867,2]
[373229941,1752917453994,-460.0,0.00019867,2]
[373229942,1752917454003,-460.0,0.00019867,2]
[373229943,1752917454013,-460.0,0.00019867,2]
[373229944,1752917454023,-151.0,0.00019867,2]
[373229945,1752917454033,-151.0,0.00019867,2]
[373229946,1752917454043,-151.0,0.00019867,2]
[373229947,1752917454053,-151.0,0.00019867,2]
[373229948,1752917454063,-460.0,0.00019867,2]
[373229949,1752917454072,-151.0,0.00019867,2]
[373229950,1752917454082,-151.0,0.00019867,2]
[373229951,1752917454091,-399.83573044,0.00019868,2]
[373229952,1752917454101,-460.0,0.00019868,2]
[373229953,1752917454111,-460.0,0.00019868,2]
[373229954,1752917454121,-460.0,0.00019868,2]
[373229955,1752917454131,-593.08,0.00019868,2]
[373229956,1752917454141,-1636.45,0.00019868,2]
[373229957,1752917454155,-480.68,0.00019868,2]
[373229958,1752917454164,-62.12866898,0.00019868,2]
[373229959,1752917454412,-1397.92,0.00016578,2]
[373229960,1752917454423,-556.09,0.00016852,2]
[373229961,1752917454731,-460.0,0.00016577,2]
[373229962,1752917454741,-40.0,0.00016578,2]
[373229963,1752917454753,-420.0,0.00016578,2]
[373229964,1752917454763,-118.16046026,0.00016851,2]
[373229969,1752917701067,238.38477566,0.00016477,2]
[373229971,1752917891355,248.31747464,0.00016477,2]
[373229972,1752918031627,398.593342,0.00013699,2]
[373229974,1752918067464,4475.29118104,0.00016477,2]
[373229976,1752918072978,177.037385,0.00015704,2]
[373229977,1752918081351,217.27779031,0.00016476,2]
[373229978,1752918181223,24900.0,0.00015578,2]
[373229979,1752918271582,190.11806653,0.00016476,2]
[373229981,1752918461790,194.64178343,0.00016476,2]
[373229987,1752918548832,354.055244,0.00015576,2]
[373230062,1752918633003,-1200.0,0.00016573,2]
[373230063,1752918633014,-300.0,0.00016573,2]
[373230065,1752918633024,-300.0,0.00016573,2]
[373230067,1752918633035,-300.0,0.00016573,2]
[373230069,1752918633045,-1200.0,0.00016573,2]
[373230072,1752918633055,-44439.5644245,0.00016574,2]
[373230075,1752918633066,-460.0,0.00016574,2]
[373230077,1752918633075,-3991.43,0.00016574,2]
[373230079,1752918633086,-460.0,0.00016574,2]
[373230081,1752918633096,-460.0,0.00016574,2]
[373230084,1752918633106,-1335.82,0.00016574,2]
[373230087,1752918633116,-460.0,0.00016574,2]
[373230089,1752918633126,-3170.05,0.00016574,2]
[373230091,1752918633136,-460.0,0.00016574,2]
[373230093,1752918633149,-500.0,0.00016574,2]
[373230095,1752918633159,-500.0,0.00016574,2]
[373230097,1752918633168,-500.0,0.00016574,2]
[373230099,1752918633178,-500.0,0.00016574,2]
[373230101,1752918633189,-492.2262725,0.00016574,2]
[373230102,1752918633199,-500.0,0.00016574,2]
[373230103,1752918633209,-406.25409305,0.00016574,2]
[373230104,1752918633219,-290.4,0.00016574,2]
[373230105,1752918633231,-235.92766044,0.00016574,2]
[373230106,1752918633241,-500.0,0.00016574,2]
[373230107,1752918633252,-500.0,0.00016574,2]
[373230108,1752918633262,-500.0,0.00016574,2]
[373230109,1752918633272,-500.0,0.00016574,2]
[373230110,1752918633283,-515.20248598,0.00016575,2]
[373230111,1752918633293,-460.0,0.00016575,2]
[373230112,1752918633303,-460.0,0.00016575,2]
[373230113,1752918633313,-460.0,0.00016575,2]
[373230114,1752918633322,-460.0,0.00016575,2]
[373230115,1752918633331,-464.30503232,0.00016575,2]
[373230116,1752918633341,-460.0,0.00016575,2]
[373230117,1752918633350,-505.27191865,0.00016575,2]
[373230118,1752918633360,-460.0,0.00016575,2]
[373230119,1752918633369,-460.0,0.00016575,2]
[373230120,1752918633379,-460.0,0.00016575,2]
[373230121,1752918633388,-460.0,0.00016575,2]
[373230122,1752918633398,-460.0,0.00016575,2]
[373230123,1752918633408,-466.15166201,0.00016575,2]
[373230124,1752918633417,-460.0,0.00016575,2]
[373230125,1752918633427,-460.0,0.00016575,2]